Workbook

Sheet H31.3
B1: 行政区別の世帯数と人口
G2: (平成31年3月末日現在)
B4: 校区 | C4: 区名 | D4: 世帯数 | E4: 人口 | H4: 65歳以上の 割合（％）
E5: 男 | F5: 女 | G5: 全体
B6: 腹赤 | C6: 平原 | D6: 314 | E6: 333 | F6: 331 | G6: =SUM(E6:F6) -> 664 | H6: 33.4
C7: 清源寺 | D7: 665 | E7: 766 | F7: 656 | G7: =SUM(E7:F7) -> 1422 | H7: 31.9
C8: 上沖洲 | D8: 433 | E8: 395 | F8: 414 | G8: 809 | H8: 32
C9: 腹赤 | D9: 364 | E9: 439 | F9: 483 | G9: 922 | H9: 27.3
C10: 腹赤新町 | D10: 89 | E10: 103 | F10: 99 | G10: 202 | H10: 45
C11: 校区合計 | D11: =SUM(D6:D10) -> 1865 | E11: =SUM(E6:E10) -> 2036 | F11: =SUM(F6:F10) -> 1983 | G11: =SUM(G6:G10) -> 4019 | H11: 31.8
B12: 六栄 | C12: 折地 | D12: 206 | E12: 223 | F12: 258 | G12: =SUM(E12:F12) -> 481 | H12: 39.3
C13: 赤崎 | D13: 123 | E13: 160 | F13: 158 | G13: =SUM(E13:F13) -> 318 | H13: 38.7
C14: 高田 | D14: 59 | E14: 75 | F14: 88 | G14: 163 | H14: 27
C15: 鷲巣 | D15: 221 | E15: 250 | F15: 252 | G15: 502 | H15: 36.7
C16: 立野 | D16: 172 | E16: 177 | F16: 178 | G16: 355 | H16: 39.2
C17: 向野 | D17: 398 | E17: 472 | F17: 482 | G17: 954 | H17: 34.3
C18: 宮崎 | D18: 161 | E18: 182 | F18: 200 | G18: 382 | H18: 36.9
C19: 赤田 | D19: 98 | E19: 103 | F19: 125 | G19: 228 | H19: 37.7
C20: 葛輪 | D20: 74 | E20: 78 | F20: 96 | G20: 174 | H20: 49.4
C21: 永方 | D21: 106 | E21: 99 | F21: 141 | G21: 240 | H21: 42.1
C22: 塩屋 | D22: 96 | E22: 92 | F22: 112 | G22: 204 | H22: 45.1
C23: 向野北 | D23: 281 | E23: 323 | F23: 118 | G23: 441 | H23: 0.2
C24: 古城 | D24: 273 | E24: 330 | F24: 347 | G24: 677 | H24: 29.4
C25: 校区合計 | D25: =SUM(D12:D24) -> 2268 | E25: =SUM(E12:E24) -> 2564 | F25: =SUM(F12:F24) -> 2555 | G25: =SUM(G12:G24) -> 5119 | H25: 33.4
B26: 清里 | C26: 建浜 | D26: 307 | E26: 387 | F26: 406 | G26: =SUM(E26:F26) -> 793 | H26: 33.3
C27: 駅通 | D27: 145 | E27: 169 | F27: 166 | G27: =SUM(E27:F27) -> 335 | H27: 30.4
C28: 梅田 | D28: 266 | E28: 293 | F28: 326 | G28: 619 | H28: 38.6
C29: 校区合計 | D29: =SUM(D26:D28) -> 718 | E29: =SUM(E26:E28) -> 849 | F29: =SUM(F26:F28) -> 898 | G29: =SUM(G26:G28) -> 1747 | H29: 34.6
B30: 長洲 | C30: 出町 | D30: 208 | E30: 225 | F30: 241 | G30: =SUM(E30:F30) -> 466 | H30: 36.9
C31: 新町 | D31: 150 | E31: 167 | F31: 171 | G31: =SUM(E31:F31) -> 338 | H31: 37.6
C32: 西新町 | D32: 37 | E32: 27 | F32: 36 | G32: 63 | H32: 65.1
C33: 宮ノ町 | D33: 138 | E33: 159 | F33: 156 | G33: 315 | H33: 33.3
C34: 松原 | D34: 108 | E34: 113 | F34: 109 | G34: 222 | H34: 43.2
C35: 新山 | D35: 290 | E35: 282 | F35: 338 | G35: 620 | H35: 42.7
C36: 宝町 | D36: 143 | E36: 125 | F36: 138 | G36: 263 | H36: 46.4
C37: 磯町 | D37: 111 | E37: 95 | F37: 116 | G37: 211 | H37: 46
C38: 上町 | D38: 69 | E38: 73 | F38: 81 | G38: 154 | H38: 44.2
C39: 中町 | D39: 58 | E39: 59 | F39: 66 | G39: 125 | H39: 45.6
C40: 下本 | D40: 42 | E40: 32 | F40: 53 | G40: 85 | H40: 57.6
C41: 今町 | D41: 48 | E41: 49 | F41: 69 | G41: 118 | H41: 44.1
C42: 下東 | D42: 257 | E42: 294 | F42: 303 | G42: 597 | H42: 28.3
C43: 西荒神 | D43: 65 | E43: 80 | F43: 70 | G43: 150 | H43: 42
C44: 東荒神 | D44: 354 | E44: 387 | F44: 437 | G44: 824 | H44: 29.2
C45: 大明神 | D45: 282 | E45: 310 | F45: 302 | G45: 612 | H45: 33.3
C46: 校区合計 | D46: =SUM(D30:D45) -> 2360 | E46: =SUM(E30:E45) -> 2477 | F46: =SUM(F30:F45) -> 2686 | G46: =SUM(G30:G45) -> 5163 | H46: 37.3
B48: 全体 | C48: =D11+D25+D29+D46 -> 7211 | E48: 16048 | G48: 0.344
D49: （世帯数） | F49: （人口） | H49: （65歳以上の割合）

Sheet H31.2
B1: 行政区別の世帯数と人口
G2: (平成31年2月末日現在)
B4: 校区 | C4: 区名 | D4: 世帯数 | E4: 人口 | H4: 65歳以上の 割合（％）
E5: 男 | F5: 女 | G5: 全体
B6: 腹赤 | C6: 平原 | D6: 309 | E6: 332 | F6: 327 | G6: =SUM(E6:F6) -> 659 | H6: 33.2
C7: 清源寺 | D7: 667 | E7: 771 | F7: 663 | G7: =SUM(E7:F7) -> 1434 | H7: 31.5
C8: 上沖洲 | D8: 433 | E8: 398 | F8: 415 | G8: 813 | H8: 32
C9: 腹赤 | D9: 360 | E9: 441 | F9: 483 | G9: 924 | H9: 27.1
C10: 腹赤新町 | D10: 84 | E10: 100 | F10: 99 | G10: 199 | H10: 45.7
C11: 校区合計 | D11: =SUM(D6:D10) -> 1853 | E11: =SUM(E6:E10) -> 2042 | F11: =SUM(F6:F10) -> 1987 | G11: =SUM(G6:G10) -> 4029 | H11: 31.6
B12: 六栄 | C12: 折地 | D12: 201 | E12: 219 | F12: 259 | G12: =SUM(E12:F12) -> 478 | H12: 39.5
C13: 赤崎 | D13: 123 | E13: 162 | F13: 160 | G13: =SUM(E13:F13) -> 322 | H13: 38.5
C14: 高田 | D14: 59 | E14: 75 | F14: 88 | G14: 163 | H14: 25.8
C15: 鷲巣 | D15: 220 | E15: 251 | F15: 252 | G15: 503 | H15: 36.4
C16: 立野 | D16: 173 | E16: 177 | F16: 178 | G16: 355 | H16: 38.9
C17: 向野 | D17: 402 | E17: 476 | F17: 487 | G17: 963 | H17: 33.6
C18: 宮崎 | D18: 160 | E18: 180 | F18: 194 | G18: 374 | H18: 38
C19: 赤田 | D19: 98 | E19: 102 | F19: 125 | G19: 227 | H19: 37.9
C20: 葛輪 | D20: 74 | E20: 78 | F20: 96 | G20: 174 | H20: 49.4
C21: 永方 | D21: 105 | E21: 98 | F21: 141 | G21: 239 | H21: 41.4
C22: 塩屋 | D22: 96 | E22: 93 | F22: 112 | G22: 205 | H22: 44.9
C23: 向野北 | D23: 280 | E23: 322 | F23: 118 | G23: 440 | H23: 0.2
C24: 古城 | D24: 271 | E24: 331 | F24: 344 | G24: 675 | H24: 29.2
C25: 校区合計 | D25: =SUM(D12:D24) -> 2262 | E25: =SUM(E12:E24) -> 2564 | F25: =SUM(F12:F24) -> 2554 | G25: =SUM(G12:G24) -> 5118 | H25: 33.3
B26: 清里 | C26: 建浜 | D26: 304 | E26: 383 | F26: 402 | G26: =SUM(E26:F26) -> 785 | H26: 33.6
C27: 駅通 | D27: 146 | E27: 169 | F27: 167 | G27: =SUM(E27:F27) -> 336 | H27: 30.7
C28: 梅田 | D28: 266 | E28: 291 | F28: 325 | G28: 616 | H28: 38.8
C29: 校区合計 | D29: =SUM(D26:D28) -> 716 | E29: =SUM(E26:E28) -> 843 | F29: =SUM(F26:F28) -> 894 | G29: =SUM(G26:G28) -> 1737 | H29: 34.9
B30: 長洲 | C30: 出町 | D30: 211 | E30: 228 | F30: 243 | G30: =SUM(E30:F30) -> 471 | H30: 36.7
C31: 新町 | D31: 150 | E31: 169 | F31: 171 | G31: =SUM(E31:F31) -> 340 | H31: 37.1
C32: 西新町 | D32: 37 | E32: 28 | F32: 36 | G32: 64 | H32: 64.1
C33: 宮ノ町 | D33: 137 | E33: 159 | F33: 153 | G33: 312 | H33: 33.7
C34: 松原 | D34: 108 | E34: 112 | F34: 112 | G34: 224 | H34: 42.9
C35: 新山 | D35: 290 | E35: 285 | F35: 339 | G35: 624 | H35: 42.3
C36: 宝町 | D36: 144 | E36: 126 | F36: 140 | G36: 266 | H36: 45.9
C37: 磯町 | D37: 111 | E37: 95 | F37: 116 | G37: 211 | H37: 46
C38: 上町 | D38: 68 | E38: 73 | F38: 78 | G38: 151 | H38: 45
C39: 中町 | D39: 57 | E39: 58 | F39: 66 | G39: 124 | H39: 44.4
C40: 下本 | D40: 42 | E40: 33 | F40: 54 | G40: 87 | H40: 56.3
C41: 今町 | D41: 48 | E41: 49 | F41: 69 | G41: 118 | H41: 44.1
C42: 下東 | D42: 256 | E42: 293 | F42: 308 | G42: 601 | H42: 28
C43: 西荒神 | D43: 63 | E43: 76 | F43: 67 | G43: 143 | H43: 44.1
C44: 東荒神 | D44: 351 | E44: 387 | F44: 437 | G44: 824 | H44: 29
C45: 大明神 | D45: 283 | E45: 312 | F45: 305 | G45: 617 | H45: 32.9
C46: 校区合計 | D46: =SUM(D30:D45) -> 2356 | E46: =SUM(E30:E45) -> 2483 | F46: =SUM(F30:F45) -> 2694 | G46: =SUM(G30:G45) -> 5177 | H46: 37.1
B48: 全体 | C48: =D11+D25+D29+D46 -> 7187 | E48: =G11++G25+G29+G46 -> 16061 | G48: 0.343
D49: （世帯数） | F49: （人口） | H49: （65歳以上の割合）

Sheet H31.1
B1: 行政区別の世帯数と人口
G2: (平成31年1月末日現在)
B4: 校区 | C4: 区名 | D4: 世帯数 | E4: 人口 | H4: 65歳以上の 割合（％）
E5: 男 | F5: 女 | G5: 全体
B6: 腹赤 | C6: 平原 | D6: 309 | E6: 333 | F6: 325 | G6: =SUM(E6:F6) -> 658 | H6: 33.3
C7: 清源寺 | D7: 668 | E7: 772 | F7: 664 | G7: =SUM(E7:F7) -> 1436 | H7: 31.3
C8: 上沖洲 | D8: 434 | E8: 399 | F8: 415 | G8: 814 | H8: 31.9
C9: 腹赤 | D9: 358 | E9: 439 | F9: 481 | G9: 920 | H9: 27.2
C10: 腹赤新町 | D10: 85 | E10: 100 | F10: 100 | G10: 200 | H10: 46
C11: 校区合計 | D11: =SUM(D6:D10) -> 1854 | E11: =SUM(E6:E10) -> 2043 | F11: =SUM(F6:F10) -> 1985 | G11: =SUM(G6:G10) -> 4028 | H11: 31.6
B12: 六栄 | C12: 折地 | D12: 201 | E12: 219 | F12: 258 | G12: =SUM(E12:F12) -> 477 | H12: 39.4
C13: 赤崎 | D13: 122 | E13: 161 | F13: 160 | G13: =SUM(E13:F13) -> 321 | H13: 38.3
C14: 高田 | D14: 57 | E14: 73 | F14: 88 | G14: 161 | H14: 26.1
C15: 鷲巣 | D15: 221 | E15: 252 | F15: 253 | G15: 505 | H15: 36
C16: 立野 | D16: 173 | E16: 178 | F16: 181 | G16: 359 | H16: 37.9
C17: 向野 | D17: 397 | E17: 472 | F17: 484 | G17: 956 | H17: 33.7
C18: 宮崎 | D18: 157 | E18: 179 | F18: 194 | G18: 373 | H18: 37.8
C19: 赤田 | D19: 98 | E19: 102 | F19: 125 | G19: 227 | H19: 37.9
C20: 葛輪 | D20: 74 | E20: 78 | F20: 96 | G20: 174 | H20: 48.9
C21: 永方 | D21: 105 | E21: 99 | F21: 141 | G21: 240 | H21: 40.4
C22: 塩屋 | D22: 94 | E22: 93 | F22: 110 | G22: 203 | H22: 45.3
C23: 向野北 | D23: 257 | E23: 300 | F23: 116 | G23: 416 | H23: 0
C24: 古城 | D24: 271 | E24: 332 | F24: 345 | G24: 677 | H24: 29.4
C25: 校区合計 | D25: =SUM(D12:D24) -> 2227 | E25: =SUM(E12:E24) -> 2538 | F25: =SUM(F12:F24) -> 2551 | G25: =SUM(G12:G24) -> 5089 | H25: 33.3
B26: 清里 | C26: 建浜 | D26: 303 | E26: 382 | F26: 402 | G26: =SUM(E26:F26) -> 784 | H26: 33.4
C27: 駅通 | D27: 146 | E27: 170 | F27: 166 | G27: =SUM(E27:F27) -> 336 | H27: 31
C28: 梅田 | D28: 267 | E28: 292 | F28: 326 | G28: 618 | H28: 38.3
C29: 校区合計 | D29: =SUM(D26:D28) -> 716 | E29: =SUM(E26:E28) -> 844 | F29: =SUM(F26:F28) -> 894 | G29: =SUM(G26:G28) -> 1738 | H29: 34.7
B30: 長洲 | C30: 出町 | D30: 213 | E30: 231 | F30: 244 | G30: =SUM(E30:F30) -> 475 | H30: 36.2
C31: 新町 | D31: 153 | E31: 170 | F31: 176 | G31: =SUM(E31:F31) -> 346 | H31: 36.7
C32: 西新町 | D32: 37 | E32: 28 | F32: 36 | G32: 64 | H32: 64.1
C33: 宮ノ町 | D33: 137 | E33: 160 | F33: 153 | G33: 313 | H33: 33.5
C34: 松原 | D34: 108 | E34: 112 | F34: 112 | G34: 224 | H34: 42.4
C35: 新山 | D35: 291 | E35: 289 | F35: 342 | G35: 631 | H35: 42
C36: 宝町 | D36: 144 | E36: 129 | F36: 141 | G36: 270 | H36: 44.8
C37: 磯町 | D37: 112 | E37: 96 | F37: 116 | G37: 212 | H37: 46.2
C38: 上町 | D38: 69 | E38: 74 | F38: 79 | G38: 153 | H38: 44.4
C39: 中町 | D39: 57 | E39: 58 | F39: 66 | G39: 124 | H39: 44.4
C40: 下本 | D40: 43 | E40: 34 | F40: 54 | G40: 88 | H40: 55.7
C41: 今町 | D41: 48 | E41: 49 | F41: 69 | G41: 118 | H41: 44.1
C42: 下東 | D42: 255 | E42: 294 | F42: 308 | G42: 602 | H42: 27.9
C43: 西荒神 | D43: 63 | E43: 76 | F43: 67 | G43: 143 | H43: 44.1
C44: 東荒神 | D44: 360 | E44: 398 | F44: 439 | G44: 837 | H44: 28.7
C45: 大明神 | D45: 285 | E45: 317 | F45: 306 | G45: 623 | H45: 32.4
C46: 校区合計 | D46: =SUM(D30:D45) -> 2375 | E46: =SUM(E30:E45) -> 2515 | F46: =SUM(F30:F45) -> 2708 | G46: =SUM(G30:G45) -> 5223 | H46: 36.8
B48: 全体 | C48: 7172 | E48: 16078 | G48: 0.341
D49: （世帯数） | F49: （人口） | H49: （65歳以上の割合）

Sheet H30.12
B1: 行政区別の世帯数と人口
G2: (平成30年12月末日現在)
B4: 校区 | C4: 区名 | D4: 世帯数 | E4: 前月比（世帯） | F4: 人口 | G4: 前月比（人） | H4: 高齢化率（％）
B5: 腹赤 | C5: 平原 | D5: 311 | E5: =D5-'H30.11'!D5 -> -3 | F5: 660 | G5: =F5-'H30.11'!F5 -> -12 | H5: 33.3
C6: 清源寺 | D6: 673 | E6: =D6-'H30.11'!D6 -> -8 | F6: 1444 | G6: =F6-'H30.11'!F6 -> -7 | H6: 31.2
C7: 上沖洲 | D7: 434 | E7: =D7-'H30.11'!D7 -> 1 | F7: 817 | G7: =F7-'H30.11'!F7 -> -2 | H7: 31.9
C8: 腹赤 | D8: 360 | E8: =D8-'H30.11'!D8 -> 0 | F8: 923 | G8: =F8-'H30.11'!F8 -> -1 | H8: 27.1
C9: 腹赤新町 | D9: 85 | E9: =D9-'H30.11'!D9 -> 0 | F9: 200 | G9: =F9-'H30.11'!F9 -> -1 | H9: 46
C10: 校区合計 | D10: =SUM(D5:D9) -> 1863 | E10: =D10-'H30.11'!D10 -> -10 | F10: =SUM(F5:F9) -> 4044 | G10: =F10-'H30.11'!F10 -> -23 | H10: 31.5
B11: 六栄 | C11: 折地 | D11: 201 | E11: =D11-'H30.11'!D11 -> 1 | F11: 478 | G11: =F11-'H30.11'!F11 -> 3 | H11: 39.3
C12: 赤崎 | D12: 121 | E12: =D12-'H30.11'!D12 -> 0 | F12: 320 | G12: =F12-'H30.11'!F12 -> 0 | H12: 38.4
C13: 高田 | D13: 57 | E13: =D13-'H30.11'!D13 -> 0 | F13: 161 | G13: =F13-'H30.11'!F13 -> 0 | H13: 26.7
C14: 鷲巣 | D14: 218 | E14: =D14-'H30.11'!D14 -> -2 | F14: 502 | G14: =F14-'H30.11'!F14 -> -5 | H14: 36.1
C15: 立野 | D15: 177 | E15: =D15-'H30.11'!D15 -> 0 | F15: 363 | G15: =F15-'H30.11'!F15 -> -1 | H15: 38
C16: 向野 | D16: 396 | E16: =D16-'H30.11'!D16 -> 3 | F16: 956 | G16: =F16-'H30.11'!F16 -> 5 | H16: 33.6
C17: 宮崎 | D17: 156 | E17: =D17-'H30.11'!D17 -> 0 | F17: 372 | G17: =F17-'H30.11'!F17 -> -2 | H17: 37.6
C18: 赤田 | D18: 97 | E18: =D18-'H30.11'!D18 -> 1 | F18: 226 | G18: =F18-'H30.11'!F18 -> 0 | H18: 37.6
C19: 葛輪 | D19: 74 | E19: =D19-'H30.11'!D19 -> 0 | F19: 176 | G19: =F19-'H30.11'!F19 -> 0 | H19: 48.3
C20: 永方 | D20: 104 | E20: =D20-'H30.11'!D20 -> 0 | F20: 238 | G20: =F20-'H30.11'!F20 -> 0 | H20: 40.8
C21: 塩屋 | D21: 93 | E21: =D21-'H30.11'!D21 -> -2 | F21: 203 | G21: =F21-'H30.11'!F21 -> -3 | H21: 45.8
C22: 向野北 | D22: 264 | E22: =D22-'H30.11'!D22 -> 3 | F22: 421 | G22: =F22-'H30.11'!F22 -> 9 | H22: 0
C23: 古城 | D23: 272 | E23: =D23-'H30.11'!D23 -> 0 | F23: 679 | G23: =F23-'H30.11'!F23 -> 1 | H23: 29.2
C24: 校区合計 | D24: =SUM(D11:D23) -> 2230 | E24: =D24-'H30.11'!D24 -> 4 | F24: =SUM(F11:F23) -> 5095 | G24: =F24-'H30.11'!F24 -> 7 | H24: 33.2
B25: 清里 | C25: 建浜 | D25: 304 | E25: =D25-'H30.11'!D25 -> -1 | F25: 779 | G25: =F25-'H30.11'!F25 -> -4 | H25: 33.8
C26: 駅通 | D26: 147 | E26: =D26-'H30.11'!D26 -> -1 | F26: 337 | G26: =F26-'H30.11'!F26 -> -2 | H26: 31.5
C27: 梅田 | D27: 269 | E27: =D27-'H30.11'!D27 -> 3 | F27: 622 | G27: =F27-'H30.11'!F27 -> 5 | H27: 38.6
C28: 校区合計 | D28: =SUM(D25:D27) -> 720 | E28: =D28-'H30.11'!D28 -> 1 | F28: =SUM(F25:F27) -> 1738 | G28: =F28-'H30.11'!F28 -> -1 | H28: 35
B29: 長洲 | C29: 出町 | D29: 214 | E29: =D29-'H30.11'!D29 -> -1 | F29: 481 | G29: =F29-'H30.11'!F29 -> -1 | H29: 35.6
C30: 新町 | D30: 152 | E30: =D30-'H30.11'!D30 -> -2 | F30: 344 | G30: =F30-'H30.11'!F30 -> -3 | H30: 36.3
C31: 西新町 | D31: 36 | E31: =D31-'H30.11'!D31 -> 0 | F31: 63 | G31: =F31-'H30.11'!F31 -> 0 | H31: 65.1
C32: 宮ノ町 | D32: 138 | E32: =D32-'H30.11'!D32 -> 1 | F32: 314 | G32: =F32-'H30.11'!F32 -> 1 | H32: 33.4
C33: 松原 | D33: 108 | E33: =D33-'H30.11'!D33 -> 0 | F33: 225 | G33: =F33-'H30.11'!F33 -> 1 | H33: 42.2
C34: 新山 | D34: 295 | E34: =D34-'H30.11'!D34 -> -1 | F34: 634 | G34: =F34-'H30.11'!F34 -> -1 | H34: 41.8
C35: 宝町 | D35: 144 | E35: =D35-'H30.11'!D35 -> 1 | F35: 271 | G35: =F35-'H30.11'!F35 -> 1 | H35: 44.3
C36: 磯町 | D36: 113 | E36: =D36-'H30.11'!D36 -> 0 | F36: 213 | G36: =F36-'H30.11'!F36 -> 0 | H36: 46
C37: 上町 | D37: 70 | E37: =D37-'H30.11'!D37 -> -1 | F37: 154 | G37: =F37-'H30.11'!F37 -> -1 | H37: 43.5
C38: 中町 | D38: 57 | E38: =D38-'H30.11'!D38 -> 0 | F38: 125 | G38: =F38-'H30.11'!F38 -> 0 | H38: 44.8
C39: 下本 | D39: 43 | E39: =D39-'H30.11'!D39 -> 0 | F39: 88 | G39: =F39-'H30.11'!F39 -> -1 | H39: 55.7
C40: 今町 | D40: 48 | E40: =D40-'H30.11'!D40 -> 0 | F40: 118 | G40: =F40-'H30.11'!F40 -> 0 | H40: 44.1
C41: 下東 | D41: 255 | E41: =D41-'H30.11'!D41 -> 2 | F41: 605 | G41: =F41-'H30.11'!F41 -> 1 | H41: 27.6
C42: 西荒神 | D42: 61 | E42: =D42-'H30.11'!D42 -> 0 | F42: 140 | G42: =F42-'H30.11'!F42 -> -1 | H42: 45
C43: 東荒神 | D43: 353 | E43: =D43-'H30.11'!D43 -> -4 | F43: 830 | G43: =F43-'H30.11'!F43 -> -2 | H43: 28.8
C44: 大明神 | D44: 284 | E44: =D44-'H30.11'!D44 -> 0 | F44: 623 | G44: =F44-'H30.11'!F44 -> 1 | H44: 32.3
C45: 校区合計 | D45: =SUM(D29:D44) -> 2371 | E45: =D45-'H30.11'!D45 -> -5 | F45: =SUM(F29:F44) -> 5228 | G45: =F45-'H30.11'!F45 -> -5 | H45: 36.6
B47: 全体 | C47: 7184 | E47: 16105 | G47: 0.341
D48: （世帯数） | F48: （人口） | H48: （高齢化率）

Sheet H30.11
B1: 行政区別の世帯数と人口
G2: (平成30年11月末日現在)
B4: 校区 | C4: 区名 | D4: 世帯数 | E4: 前月比（世帯） | F4: 人口 | G4: 前月比（人） | H4: 高齢化率（％）
B5: 腹赤 | C5: 平原 | D5: 314 | E5: =D5-'H30.10'!D5 -> 0 | F5: 672 | G5: =F5-'H30.10'!F5 -> 2 | H5: 33.3
C6: 清源寺 | D6: 681 | E6: =D6-'H30.10'!D6 -> -3 | F6: 1451 | G6: =F6-'H30.10'!F6 -> -2 | H6: 30.7
C7: 上沖洲 | D7: 433 | E7: =D7-'H30.10'!D7 -> 1 | F7: 819 | G7: =F7-'H30.10'!F7 -> -1 | H7: 32.1
C8: 腹赤 | D8: 360 | E8: =D8-'H30.10'!D8 -> 7 | F8: 924 | G8: =F8-'H30.10'!F8 -> 9 | H8: 27.2
C9: 腹赤新町 | D9: 85 | E9: =D9-'H30.10'!D9 -> -1 | F9: 201 | G9: =F9-'H30.10'!F9 -> -3 | H9: 44.8
C10: 校区合計 | D10: =SUM(D5:D9) -> 1873 | E10: =D10-'H30.10'!D10 -> 4 | F10: =SUM(F5:F9) -> 4067 | G10: =F10-'H30.10'!F10 -> 5 | H10: 31.3
B11: 六栄 | C11: 折地 | D11: 200 | E11: =D11-'H30.10'!D11 -> 0 | F11: 475 | G11: =F11-'H30.10'!F11 -> 4 | H11: 39.4
C12: 赤崎 | D12: 121 | E12: =D12-'H30.10'!D12 -> 0 | F12: 320 | G12: =F12-'H30.10'!F12 -> 0 | H12: 38.4
C13: 高田 | D13: 57 | E13: =D13-'H30.10'!D13 -> 1 | F13: 161 | G13: =F13-'H30.10'!F13 -> 0 | H13: 26.1
C14: 鷲巣 | D14: 220 | E14: =D14-'H30.10'!D14 -> -1 | F14: 507 | G14: =F14-'H30.10'!F14 -> -5 | H14: 35.7
C15: 立野 | D15: 177 | E15: =D15-'H30.10'!D15 -> 0 | F15: 364 | G15: =F15-'H30.10'!F15 -> -1 | H15: 37.1
C16: 向野 | D16: 393 | E16: =D16-'H30.10'!D16 -> -2 | F16: 951 | G16: =F16-'H30.10'!F16 -> -6 | H16: 33.8
C17: 宮崎 | D17: 156 | E17: =D17-'H30.10'!D17 -> 1 | F17: 374 | G17: =F17-'H30.10'!F17 -> -4 | H17: 37.2
C18: 赤田 | D18: 96 | E18: =D18-'H30.10'!D18 -> 1 | F18: 226 | G18: =F18-'H30.10'!F18 -> 2 | H18: 37.6
C19: 葛輪 | D19: 74 | E19: =D19-'H30.10'!D19 -> 0 | F19: 176 | G19: =F19-'H30.10'!F19 -> 0 | H19: 48.9
C20: 永方 | D20: 104 | E20: =D20-'H30.10'!D20 -> 1 | F20: 238 | G20: =F20-'H30.10'!F20 -> 0 | H20: 40.8
C21: 塩屋 | D21: 95 | E21: =D21-'H30.10'!D21 -> 1 | F21: 206 | G21: =F21-'H30.10'!F21 -> -1 | H21: 45.6
C22: 向野北 | D22: 261 | E22: =D22-'H30.10'!D22 -> 0 | F22: 412 | G22: =F22-'H30.10'!F22 -> -2 | H22: 0
C23: 古城 | D23: 272 | E23: =D23-'H30.10'!D23 -> 2 | F23: 678 | G23: =F23-'H30.10'!F23 -> 5 | H23: 29.2
C24: 校区合計 | D24: =SUM(D11:D23) -> 2226 | E24: =D24-'H30.10'!D24 -> 4 | F24: =SUM(F11:F23) -> 5088 | G24: =F24-'H30.10'!F24 -> -8 | H24: 33.2
B25: 清里 | C25: 建浜 | D25: 305 | E25: =D25-'H30.10'!D25 -> 0 | F25: 783 | G25: =F25-'H30.10'!F25 -> -1 | H25: 33.3
C26: 駅通 | D26: 148 | E26: =D26-'H30.10'!D26 -> -1 | F26: 339 | G26: =F26-'H30.10'!F26 -> -1 | H26: 31
C27: 梅田 | D27: 266 | E27: =D27-'H30.10'!D27 -> 1 | F27: 617 | G27: =F27-'H30.10'!F27 -> 5 | H27: 38.9
C28: 校区合計 | D28: =SUM(D25:D27) -> 719 | E28: =D28-'H30.10'!D28 -> 0 | F28: =SUM(F25:F27) -> 1739 | G28: =F28-'H30.10'!F28 -> 3 | H28: 34.8
B29: 長洲 | C29: 出町 | D29: 215 | E29: =D29-'H30.10'!D29 -> 0 | F29: 482 | G29: =F29-'H30.10'!F29 -> 0 | H29: 35.7
C30: 新町 | D30: 154 | E30: =D30-'H30.10'!D30 -> 0 | F30: 347 | G30: =F30-'H30.10'!F30 -> -1 | H30: 36.3
C31: 西新町 | D31: 36 | E31: =D31-'H30.10'!D31 -> 0 | F31: 63 | G31: =F31-'H30.10'!F31 -> 0 | H31: 65.1
C32: 宮ノ町 | D32: 137 | E32: =D32-'H30.10'!D32 -> -1 | F32: 313 | G32: =F32-'H30.10'!F32 -> -1 | H32: 32.6
C33: 松原 | D33: 108 | E33: =D33-'H30.10'!D33 -> 1 | F33: 224 | G33: =F33-'H30.10'!F33 -> 1 | H33: 42
C34: 新山 | D34: 296 | E34: =D34-'H30.10'!D34 -> 1 | F34: 635 | G34: =F34-'H30.10'!F34 -> -4 | H34: 41.9
C35: 宝町 | D35: 143 | E35: =D35-'H30.10'!D35 -> 1 | F35: 270 | G35: =F35-'H30.10'!F35 -> 3 | H35: 44.4
C36: 磯町 | D36: 113 | E36: =D36-'H30.10'!D36 -> -1 | F36: 213 | G36: =F36-'H30.10'!F36 -> -2 | H36: 45.5
C37: 上町 | D37: 71 | E37: =D37-'H30.10'!D37 -> 0 | F37: 155 | G37: =F37-'H30.10'!F37 -> 0 | H37: 43.9
C38: 中町 | D38: 57 | E38: =D38-'H30.10'!D38 -> 1 | F38: 125 | G38: =F38-'H30.10'!F38 -> 0 | H38: 44.8
C39: 下本 | D39: 43 | E39: =D39-'H30.10'!D39 -> -4 | F39: 89 | G39: =F39-'H30.10'!F39 -> 0 | H39: 56.2
C40: 今町 | D40: 48 | E40: =D40-'H30.10'!D40 -> 1 | F40: 118 | G40: =F40-'H30.10'!F40 -> 4 | H40: 44.1
C41: 下東 | D41: 253 | E41: =D41-'H30.10'!D41 -> 0 | F41: 604 | G41: =F41-'H30.10'!F41 -> -1 | H41: 27.6
C42: 西荒神 | D42: 61 | E42: =D42-'H30.10'!D42 -> 0 | F42: 141 | G42: =F42-'H30.10'!F42 -> 0 | H42: 44.7
C43: 東荒神 | D43: 357 | E43: =D43-'H30.10'!D43 -> -3 | F43: 832 | G43: =F43-'H30.10'!F43 -> 1 | H43: 28.7
C44: 大明神 | D44: 284 | E44: =D44-'H30.10'!D44 -> 3 | F44: 622 | G44: =F44-'H30.10'!F44 -> 2 | H44: 32.3
C45: 校区合計 | D45: =SUM(D29:D44) -> 2376 | E45: =D45-'H30.10'!D45 -> -1 | F45: =SUM(F29:F44) -> 5233 | G45: =F45-'H30.10'!F45 -> 2 | H45: 36.6
B47: 全体 | C47: 7194 | E47: 16127 | G47: 34
D48: （世帯数） | F48: （人口） | H48: （高齢化率）

Sheet H30.10
B1: 行政区別の世帯数と人口
G2: (平成30年10月末日現在)
B4: 校区 | C4: 区名 | D4: 世帯数 | E4: 前月比（世帯） | F4: 人口 | G4: 前月比（人） | H4: 高齢化率（％）
B5: 腹赤 | C5: 平原 | D5: 314 | E5: =D5-'H30.9'!D5 -> 2 | F5: 670 | G5: =F5-'H30.9'!F5 -> 2 | H5: 33.4
C6: 清源寺 | D6: 684 | E6: =D6-'H30.9'!D6 -> -5 | F6: 1453 | G6: =F6-'H30.9'!F6 -> -2 | H6: 30.6
C7: 上沖洲 | D7: 432 | E7: =D7-'H30.7'!D7 -> 31 | F7: 820 | G7: =F7-'H30.9'!F7 -> 4 | H7: 32.1
C8: 腹赤 | D8: 353 | E8: =D8-'H30.7'!D8 -> 5 | F8: 915 | G8: =F8-'H30.9'!F8 -> 5 | H8: 27.4
C9: 腹赤新町 | D9: 86 | E9: =D9-'H30.7'!D9 -> -2 | F9: 204 | G9: =F9-'H30.9'!F9 -> -1 | H9: 44.6
C10: 校区合計 | D10: =SUM(D5:D9) -> 1869 | E10: =D10-'H30.9'!D10 -> 3 | F10: =SUM(F5:F9) -> 4062 | G10: =F10-'H30.9'!F10 -> 8 | H10: 31.4
B11: 六栄 | C11: 折地 | D11: 200 | E11: =D11-'H30.9'!D11 -> 0 | F11: 471 | G11: =F11-'H30.9'!F11 -> -2 | H11: 39.7
C12: 赤崎 | D12: 121 | E12: =D12-'H30.9'!D12 -> -1 | F12: 320 | G12: =F12-'H30.9'!F12 -> 0 | H12: 38.4
C13: 高田 | D13: 56 | E13: =D13-'H30.9'!D13 -> 0 | F13: 161 | G13: =F13-'H30.9'!F13 -> 0 | H13: 26.1
C14: 鷲巣 | D14: 221 | E14: =D14-'H30.9'!D14 -> -1 | F14: 512 | G14: =F14-'H30.9'!F14 -> -5 | H14: 35.2
C15: 立野 | D15: 177 | E15: =D15-'H30.9'!D15 -> 1 | F15: 365 | G15: =F15-'H30.9'!F15 -> 3 | H15: 37.3
C16: 向野 | D16: 395 | E16: =D16-'H30.9'!D16 -> 2 | F16: 957 | G16: =F16-'H30.9'!F16 -> 7 | H16: 33.4
C17: 宮崎 | D17: 155 | E17: =D17-'H30.9'!D17 -> -2 | F17: 378 | G17: =F17-'H30.9'!F17 -> -2 | H17: 36.8
C18: 赤田 | D18: 95 | E18: =D18-'H30.9'!D18 -> 0 | F18: 224 | G18: =F18-'H30.9'!F18 -> 0 | H18: 37.5
C19: 葛輪 | D19: 74 | E19: =D19-'H30.9'!D19 -> 0 | F19: 176 | G19: =F19-'H30.9'!F19 -> 0 | H19: 48.3
C20: 永方 | D20: 103 | E20: =D20-'H30.9'!D20 -> 0 | F20: 238 | G20: =F20-'H30.9'!F20 -> 0 | H20: 40.8
C21: 塩屋 | D21: 94 | E21: =D21-'H30.9'!D21 -> 0 | F21: 207 | G21: =F21-'H30.9'!F21 -> -1 | H21: 45.4
C22: 向野北 | D22: 261 | E22: =D22-'H30.9'!D22 -> 17 | F22: 414 | G22: =F22-'H30.9'!F22 -> 12 | H22: 0
C23: 古城 | D23: 270 | E23: =D23-'H30.9'!D23 -> -2 | F23: 673 | G23: =F23-'H30.9'!F23 -> -5 | H23: 29.6
C24: 校区合計 | D24: =SUM(D11:D23) -> 2222 | E24: =D24-'H30.9'!D24 -> 14 | F24: =SUM(F11:F23) -> 5096 | G24: =F24-'H30.9'!F24 -> 7 | H24: 33.1
B25: 清里 | C25: 建浜 | D25: 305 | E25: =D25-'H30.9'!D25 -> 2 | F25: 784 | G25: =F25-'H30.9'!F25 -> 9 | H25: 33.3
C26: 駅通 | D26: 149 | E26: =D26-'H30.9'!D26 -> 0 | F26: 340 | G26: =F26-'H30.9'!F26 -> 0 | H26: 31.2
C27: 梅田 | D27: 265 | E27: =D27-'H30.9'!D27 -> 2 | F27: 612 | G27: =F27-'H30.9'!F27 -> 2 | H27: 39.2
C28: 校区合計 | D28: =SUM(D25:D27) -> 719 | E28: =D28-'H30.9'!D28 -> 4 | F28: =SUM(F25:F27) -> 1736 | G28: =F28-'H30.9'!F28 -> 11 | H28: 35
B29: 長洲 | C29: 出町 | D29: 215 | E29: =D29-'H30.9'!D29 -> -1 | F29: 482 | G29: =F29-'H30.9'!F29 -> -4 | H29: 35.5
C30: 新町 | D30: 154 | E30: =D30-'H30.9'!D30 -> 0 | F30: 348 | G30: =F30-'H30.9'!F30 -> 2 | H30: 36.2
C31: 西新町 | D31: 36 | E31: =D31-'H30.9'!D31 -> -1 | F31: 63 | G31: =F31-'H30.9'!F31 -> -1 | H31: 65.1
C32: 宮ノ町 | D32: 138 | E32: =D32-'H30.9'!D32 -> -1 | F32: 314 | G32: =F32-'H30.9'!F32 -> -3 | H32: 32.8
C33: 松原 | D33: 107 | E33: =D33-'H30.9'!D33 -> 0 | F33: 223 | G33: =F33-'H30.9'!F33 -> 3 | H33: 42.2
C34: 新山 | D34: 295 | E34: =D34-'H30.9'!D34 -> 0 | F34: 639 | G34: =F34-'H30.9'!F34 -> -2 | H34: 41.3
C35: 宝町 | D35: 142 | E35: =D35-'H30.9'!D35 -> 0 | F35: 267 | G35: =F35-'H30.9'!F35 -> -1 | H35: 44.9
C36: 磯町 | D36: 114 | E36: =D36-'H30.9'!D36 -> -1 | F36: 215 | G36: =F36-'H30.9'!F36 -> -1 | H36: 45.6
C37: 上町 | D37: 71 | E37: =D37-'H30.9'!D37 -> 2 | F37: 155 | G37: =F37-'H30.9'!F37 -> 3 | H37: 43.9
C38: 中町 | D38: 56 | E38: =D38-'H30.9'!D38 -> 0 | F38: 125 | G38: =F38-'H30.9'!F38 -> 0 | H38: 44.8
C39: 下本 | D39: 47 | E39: =D39-'H30.9'!D39 -> 6 | F39: 89 | G39: =F39-'H30.9'!F39 -> 0 | H39: 56.2
C40: 今町 | D40: 47 | E40: =D40-'H30.9'!D40 -> 0 | F40: 114 | G40: =F40-'H30.9'!F40 -> 0 | H40: 45.6
C41: 下東 | D41: 253 | E41: =D41-'H30.9'!D41 -> 2 | F41: 605 | G41: =F41-'H30.9'!F41 -> 8 | H41: 27.6
C42: 西荒神 | D42: 61 | E42: =D42-'H30.9'!D42 -> 0 | F42: 141 | G42: =F42-'H30.9'!F42 -> 0 | H42: 44.7
C43: 東荒神 | D43: 360 | E43: =D43-'H30.9'!D43 -> 10 | F43: 831 | G43: =F43-'H30.9'!F43 -> 11 | H43: 28.8
C44: 大明神 | D44: 281 | E44: =D44-'H30.9'!D44 -> -3 | F44: 620 | G44: =F44-'H30.9'!F44 -> -4 | H44: 32.3
C45: 校区合計 | D45: =SUM(D29:D44) -> 2377 | E45: =D45-'H30.9'!D45 -> 13 | F45: =SUM(F29:F44) -> 5231 | G45: =F45-'H30.9'!F45 -> 11 | H45: 36.6
B47: 全体 | C47: 7181 | E47: 16125 | G47: 34
D48: （世帯数） | F48: （人口） | H48: （高齢化率）

Sheet H30.9
B1: 行政区別の世帯数と人口
G2: (平成30年9月末日現在)
B4: 校区 | C4: 区名 | D4: 世帯数 | E4: 前月比（世帯） | F4: 人口 | G4: 前月比（人） | H4: 高齢化率（％）
B5: 腹赤 | C5: 平原 | D5: 312 | E5: =D5-'H30.8'!D5 -> -1 | F5: 668 | G5: =F5-'H30.8'!F5 -> 0 | H5: 33.5
C6: 清源寺 | D6: 689 | E6: =D6-'H30.8'!D6 -> 5 | F6: 1455 | G6: =F6-'H30.8'!F6 -> 6 | H6: 30.3
C7: 上沖洲 | D7: 428 | E7: =D7-'H30.8'!D7 -> 25 | F7: 816 | G7: =F7-'H30.8'!F7 -> 30 | H7: 32.1
C8: 腹赤 | D8: 350 | E8: =D8-'H30.8'!D8 -> -1 | F8: 910 | G8: =F8-'H30.8'!F8 -> -4 | H8: 27.6
C9: 腹赤新町 | D9: 87 | E9: =D9-'H30.8'!D9 -> -1 | F9: 205 | G9: =F9-'H30.8'!F9 -> -1 | H9: 44.9
C10: 校区合計 | D10: =SUM(D5:D9) -> 1866 | E10: =D10-'H30.8'!D10 -> 27 | F10: =SUM(F5:F9) -> 4054 | G10: =F10-'H30.8'!F10 -> 31 | H10: 31.3
B11: 六栄 | C11: 折地 | D11: 200 | E11: =D11-'H30.8'!D11 -> 3 | F11: 473 | G11: =F11-'H30.8'!F11 -> 2 | H11: 39.3
C12: 赤崎 | D12: 122 | E12: =D12-'H30.8'!D12 -> 0 | F12: 320 | G12: =F12-'H30.8'!F12 -> 0 | H12: 38.4
C13: 高田 | D13: 56 | E13: =D13-'H30.8'!D13 -> 0 | F13: 161 | G13: =F13-'H30.8'!F13 -> 0 | H13: 26.1
C14: 鷲巣 | D14: 222 | E14: =D14-'H30.8'!D14 -> -1 | F14: 517 | G14: =F14-'H30.8'!F14 -> 0 | H14: 35
C15: 立野 | D15: 176 | E15: =D15-'H30.8'!D15 -> 0 | F15: 362 | G15: =F15-'H30.8'!F15 -> -1 | H15: 37.6
C16: 向野 | D16: 393 | E16: =D16-'H30.8'!D16 -> 0 | F16: 950 | G16: =F16-'H30.8'!F16 -> -1 | H16: 33.6
C17: 宮崎 | D17: 157 | E17: =D17-'H30.8'!D17 -> 1 | F17: 380 | G17: =F17-'H30.8'!F17 -> -1 | H17: 36.1
C18: 赤田 | D18: 95 | E18: =D18-'H30.8'!D18 -> 3 | F18: 224 | G18: =F18-'H30.8'!F18 -> 3 | H18: 37.1
C19: 葛輪 | D19: 74 | E19: =D19-'H30.8'!D19 -> 1 | F19: 176 | G19: =F19-'H30.8'!F19 -> 0 | H19: 48.3
C20: 永方 | D20: 103 | E20: =D20-'H30.8'!D20 -> 0 | F20: 238 | G20: =F20-'H30.8'!F20 -> 0 | H20: 40.8
C21: 塩屋 | D21: 94 | E21: =D21-'H30.8'!D21 -> 0 | F21: 208 | G21: =F21-'H30.8'!F21 -> 0 | H21: 45.7
C22: 向野北 | D22: 244 | E22: =D22-'H30.8'!D22 -> 0 | F22: 402 | G22: =F22-'H30.8'!F22 -> -2 | H22: 0
C23: 古城 | D23: 272 | E23: =D23-'H30.8'!D23 -> -1 | F23: 678 | G23: =F23-'H30.8'!F23 -> -2 | H23: 28.9
C24: 校区合計 | D24: =SUM(D11:D23) -> 2208 | E24: =D24-'H30.8'!D24 -> 6 | F24: =SUM(F11:F23) -> 5089 | G24: =F24-'H30.8'!F24 -> -2 | H24: 33
B25: 清里 | C25: 建浜 | D25: 303 | E25: =D25-'H30.8'!D25 -> -2 | F25: 775 | G25: =F25-'H30.8'!F25 -> -4 | H25: 33.7
C26: 駅通 | D26: 149 | E26: =D26-'H30.8'!D26 -> 1 | F26: 340 | G26: =F26-'H30.8'!F26 -> 3 | H26: 30.9
C27: 梅田 | D27: 263 | E27: =D27-'H30.8'!D27 -> 0 | F27: 610 | G27: =F27-'H30.8'!F27 -> -4 | H27: 39.5
C28: 校区合計 | D28: =SUM(D25:D27) -> 715 | E28: =D28-'H30.8'!D28 -> -1 | F28: =SUM(F25:F27) -> 1725 | G28: =F28-'H30.8'!F28 -> -5 | H28: 35.2
B29: 長洲 | C29: 出町 | D29: 216 | E29: =D29-'H30.8'!D29 -> -1 | F29: 486 | G29: =F29-'H30.8'!F29 -> 0 | H29: 35
C30: 新町 | D30: 154 | E30: =D30-'H30.8'!D30 -> 1 | F30: 346 | G30: =F30-'H30.8'!F30 -> 3 | H30: 36.7
C31: 西新町 | D31: 37 | E31: =D31-'H30.8'!D31 -> 0 | F31: 64 | G31: =F31-'H30.8'!F31 -> 0 | H31: 65.6
C32: 宮ノ町 | D32: 139 | E32: =D32-'H30.8'!D32 -> -1 | F32: 317 | G32: =F32-'H30.8'!F32 -> 2 | H32: 32.5
C33: 松原 | D33: 107 | E33: =D33-'H30.8'!D33 -> 0 | F33: 220 | G33: =F33-'H30.8'!F33 -> 1 | H33: 42.7
C34: 新山 | D34: 295 | E34: =D34-'H30.8'!D34 -> -3 | F34: 641 | G34: =F34-'H30.8'!F34 -> -5 | H34: 41.2
C35: 宝町 | D35: 142 | E35: =D35-'H30.8'!D35 -> 0 | F35: 268 | G35: =F35-'H30.8'!F35 -> 0 | H35: 44.4
C36: 磯町 | D36: 115 | E36: =D36-'H30.8'!D36 -> -2 | F36: 216 | G36: =F36-'H30.8'!F36 -> -4 | H36: 45.8
C37: 上町 | D37: 69 | E37: =D37-'H30.8'!D37 -> 0 | F37: 152 | G37: =F37-'H30.8'!F37 -> -2 | H37: 44.1
C38: 中町 | D38: 56 | E38: =D38-'H30.8'!D38 -> 0 | F38: 125 | G38: =F38-'H30.8'!F38 -> 0 | H38: 44.8
C39: 下本 | D39: 41 | E39: =D39-'H30.8'!D39 -> 0 | F39: 89 | G39: =F39-'H30.8'!F39 -> 1 | H39: 56.2
C40: 今町 | D40: 47 | E40: =D40-'H30.8'!D40 -> 0 | F40: 114 | G40: =F40-'H30.8'!F40 -> -1 | H40: 45.6
C41: 下東 | D41: 251 | E41: =D41-'H30.8'!D41 -> -2 | F41: 597 | G41: =F41-'H30.8'!F41 -> 1 | H41: 27.8
C42: 西荒神 | D42: 61 | E42: =D42-'H30.8'!D42 -> 1 | F42: 141 | G42: =F42-'H30.8'!F42 -> 4 | H42: 44.7
C43: 東荒神 | D43: 350 | E43: =D43-'H30.8'!D43 -> -14 | F43: 820 | G43: =F43-'H30.8'!F43 -> -14 | H43: 29.4
C44: 大明神 | D44: 284 | E44: =D44-'H30.8'!D44 -> 3 | F44: 624 | G44: =F44-'H30.8'!F44 -> 2 | H44: 32.7
C45: 校区合計 | D45: =SUM(D29:D44) -> 2364 | E45: =D45-'H30.8'!D45 -> -18 | F45: =SUM(F29:F44) -> 5220 | G45: =F45-'H30.8'!F45 -> -12 | H45: 36.7
B47: 全体 | C47: =D10+D24+D28+D45 -> 7153 | E47: =F10+F24+F28+F45 -> 16088 | G47: 34
D48: （世帯数） | F48: （人口） | H48: （高齢化率）

Sheet H30.8
B1: 行政区別の世帯数と人口
G2: (平成30年8月末日現在)
B4: 校区 | C4: 区名 | D4: 世帯数 | E4: 前月比（世帯） | F4: 人口 | G4: 前月比（人） | H4: 高齢化率（％）
B5: 腹赤 | C5: 平原 | D5: 313 | E5: =D5-'H30.7'!D5 -> -1 | F5: 668 | G5: =F5-'H30.7'!F5 -> -6 | H5: 33.5
C6: 清源寺 | D6: 684 | E6: =D6-'H30.7'!D6 -> 2 | F6: 1449 | G6: =F6-'H30.7'!F6 -> -6 | H6: 30.4
C7: 上沖洲 | D7: 403 | E7: =D7-'H30.7'!D7 -> 2 | F7: 786 | G7: =F7-'H30.7'!F7 -> -2 | H7: 33.1
C8: 腹赤 | D8: 351 | E8: =D8-'H30.7'!D8 -> 3 | F8: 914 | G8: =F8-'H30.7'!F8 -> 8 | H8: 27.6
C9: 腹赤新町 | D9: 88 | E9: =D9-'H30.7'!D9 -> 0 | F9: 206 | G9: =F9-'H30.7'!F9 -> 0 | H9: 44.7
C10: 校区合計 | D10: 1839 | E10: =D10-'H30.7'!D10 -> 6 | F10: 4023 | G10: =F10-'H30.7'!F10 -> -6 | H10: 31.5
B11: 六栄 | C11: 折地 | D11: 197 | E11: =D11-'H30.7'!D11 -> 1 | F11: 471 | G11: =F11-'H30.7'!F11 -> 0 | H11: 39.3
C12: 赤崎 | D12: 122 | E12: =D12-'H30.7'!D12 -> -2 | F12: 320 | G12: =F12-'H30.7'!F12 -> -6 | H12: 38.1
C13: 高田 | D13: 56 | E13: =D13-'H30.7'!D13 -> 1 | F13: 161 | G13: =F13-'H30.7'!F13 -> -1 | H13: 25.5
C14: 鷲巣 | D14: 223 | E14: =D14-'H30.7'!D14 -> 1 | F14: 517 | G14: =F14-'H30.7'!F14 -> 1 | H14: 34.8
C15: 立野 | D15: 176 | E15: =D15-'H30.7'!D15 -> 1 | F15: 363 | G15: =F15-'H30.7'!F15 -> 4 | H15: 37.5
C16: 向野 | D16: 393 | E16: =D16-'H30.7'!D16 -> 1 | F16: 951 | G16: =F16-'H30.7'!F16 -> 5 | H16: 33.2
C17: 宮崎 | D17: 156 | E17: =D17-'H30.7'!D17 -> 1 | F17: 381 | G17: =F17-'H30.7'!F17 -> 4 | H17: 35.4
C18: 赤田 | D18: 92 | E18: =D18-'H30.7'!D18 -> 1 | F18: 221 | G18: =F18-'H30.7'!F18 -> 1 | H18: 37.6
C19: 葛輪 | D19: 73 | E19: =D19-'H30.7'!D19 -> 0 | F19: 176 | G19: =F19-'H30.7'!F19 -> 0 | H19: 48.3
C20: 永方 | D20: 103 | E20: =D20-'H30.7'!D20 -> 1 | F20: 238 | G20: =F20-'H30.7'!F20 -> 1 | H20: 40.3
C21: 塩屋 | D21: 94 | E21: =D21-'H30.7'!D21 -> 0 | F21: 208 | G21: =F21-'H30.7'!F21 -> -1 | H21: 45.2
C22: 向野北 | D22: 244 | E22: =D22-'H30.7'!D22 -> 0 | F22: 404 | G22: =F22-'H30.7'!F22 -> 2 | H22: 0
C23: 古城 | D23: 273 | E23: =D23-'H30.7'!D23 -> 2 | F23: 680 | G23: =F23-'H30.7'!F23 -> 4 | H23: 28.5
C24: 校区合計 | D24: 2202 | E24: =D24-'H30.7'!D24 -> 8 | F24: 5091 | G24: =F24-'H30.7'!F24 -> 14 | H24: 32.7
B25: 清里 | C25: 建浜 | D25: 305 | E25: =D25-'H30.7'!D25 -> 3 | F25: 779 | G25: =F25-'H30.7'!F25 -> 5 | H25: 33.5
C26: 駅通 | D26: 148 | E26: =D26-'H30.7'!D26 -> 4 | F26: 337 | G26: =F26-'H30.7'!F26 -> 8 | H26: 31.2
C27: 梅田 | D27: 263 | E27: =D27-'H30.7'!D27 -> 3 | F27: 614 | G27: =F27-'H30.7'!F27 -> -2 | H27: 39.3
C28: 校区合計 | D28: 716 | E28: =D28-'H30.7'!D28 -> 10 | F28: 1730 | G28: =F28-'H30.7'!F28 -> 11 | H28: 35.1
B29: 長洲 | C29: 出町 | D29: 217 | E29: =D29-'H30.7'!D29 -> -1 | F29: 486 | G29: =F29-'H30.7'!F29 -> -5 | H29: 35
C30: 新町 | D30: 153 | E30: =D30-'H30.7'!D30 -> -1 | F30: 343 | G30: =F30-'H30.7'!F30 -> -1 | H30: 37.3
C31: 西新町 | D31: 37 | E31: =D31-'H30.7'!D31 -> 0 | F31: 64 | G31: =F31-'H30.7'!F31 -> 0 | H31: 65.6
C32: 宮ノ町 | D32: 140 | E32: =D32-'H30.7'!D32 -> 2 | F32: 315 | G32: =F32-'H30.7'!F32 -> 7 | H32: 32.7
C33: 松原 | D33: 107 | E33: =D33-'H30.7'!D33 -> 2 | F33: 219 | G33: =F33-'H30.7'!F33 -> 1 | H33: 42.9
C34: 新山 | D34: 298 | E34: =D34-'H30.7'!D34 -> 1 | F34: 646 | G34: =F34-'H30.7'!F34 -> -4 | H34: 41.3
C35: 宝町 | D35: 142 | E35: =D35-'H30.7'!D35 -> -1 | F35: 268 | G35: =F35-'H30.7'!F35 -> -1 | H35: 44.4
C36: 磯町 | D36: 117 | E36: =D36-'H30.7'!D36 -> 0 | F36: 220 | G36: =F36-'H30.7'!F36 -> -1 | H36: 45.9
C37: 上町 | D37: 69 | E37: =D37-'H30.7'!D37 -> 0 | F37: 154 | G37: =F37-'H30.7'!F37 -> 0 | H37: 43.5
C38: 中町 | D38: 56 | E38: =D38-'H30.7'!D38 -> 0 | F38: 125 | G38: =F38-'H30.7'!F38 -> 0 | H38: 44.8
C39: 下本 | D39: 41 | E39: =D39-'H30.7'!D39 -> -1 | F39: 88 | G39: =F39-'H30.7'!F39 -> -1 | H39: 55.7
C40: 今町 | D40: 47 | E40: =D40-'H30.7'!D40 -> 0 | F40: 115 | G40: =F40-'H30.7'!F40 -> -1 | H40: 46.1
C41: 下東 | D41: 253 | E41: =D41-'H30.7'!D41 -> 0 | F41: 596 | G41: =F41-'H30.7'!F41 -> -3 | H41: 28.2
C42: 西荒神 | D42: 60 | E42: =D42-'H30.7'!D42 -> 0 | F42: 137 | G42: =F42-'H30.7'!F42 -> 0 | H42: 46
C43: 東荒神 | D43: 364 | E43: =D43-'H30.7'!D43 -> 2 | F43: 834 | G43: =F43-'H30.7'!F43 -> 20 | H43: 28.9
C44: 大明神 | D44: 281 | E44: =D44-'H30.7'!D44 -> 1 | F44: 622 | G44: =F44-'H30.7'!F44 -> 1 | H44: 33
C45: 校区合計 | D45: 2382 | E45: =D45-'H30.7'!D45 -> 4 | F45: 5232 | G45: =F45-'H30.7'!F45 -> 12 | H45: 36.8
B47: 全体 | C47: =D10+D24+D28+D45 -> 7139 | E47: =F10+F24+F28+F45 -> 16076 | G47: 34
D48: （世帯数） | F48: （人口） | H48: （高齢化率）

Sheet H30.7
B1: 行政区別の世帯数と人口
G2: (平成30年7月末日現在)
B4: 校区 | C4: 区名 | D4: 世帯数 | E4: 前月比（世帯） | F4: 人口 | G4: 前月比（人） | H4: 高齢化率（％）
B5: 腹赤 | C5: 平原 | D5: 314 | E5: =D5-'H30.6'!D5 -> 4 | F5: 674 | G5: =F5-'H30.6'!F5 -> 6 | H5: 33.2
C6: 清源寺 | D6: 682 | E6: =D6-'H30.6'!D6 -> -4 | F6: 1455 | G6: =F6-'H30.6'!F6 -> -5 | H6: 30.2
C7: 上沖洲 | D7: 401 | E7: =D7-'H30.6'!D7 -> 10 | F7: 788 | G7: =F7-'H30.6'!F7 -> 4 | H7: 33.1
C8: 腹赤 | D8: 348 | E8: =D8-'H30.6'!D8 -> -2 | F8: 906 | G8: =F8-'H30.6'!F8 -> -3 | H8: 27.9
C9: 腹赤新町 | D9: 88 | E9: =D9-'H30.6'!D9 -> 0 | F9: 206 | G9: =F9-'H30.6'!F9 -> 0 | H9: 44.2
C10: 校区合計 | D10: =SUM(D5:D9) -> 1833 | E10: =D10-'H30.6'!D10 -> 8 | F10: =SUM(F5:F9) -> 4029 | G10: =F10-'H30.6'!F10 -> 2 | H10: 31.5
B11: 六栄 | C11: 折地 | D11: 196 | E11: =D11-'H30.6'!D11 -> 1 | F11: 471 | G11: =F11-'H30.6'!F11 -> -1 | H11: 39.3
C12: 赤崎 | D12: 124 | E12: =D12-'H30.6'!D12 -> -1 | F12: 326 | G12: =F12-'H30.6'!F12 -> -3 | H12: 37.7
C13: 高田 | D13: 55 | E13: =D13-'H30.6'!D13 -> -1 | F13: 162 | G13: =F13-'H30.6'!F13 -> -1 | H13: 25.3
C14: 鷲巣 | D14: 222 | E14: =D14-'H30.6'!D14 -> 0 | F14: 516 | G14: =F14-'H30.6'!F14 -> -3 | H14: 33.9
C15: 立野 | D15: 175 | E15: =D15-'H30.6'!D15 -> 2 | F15: 359 | G15: =F15-'H30.6'!F15 -> 2 | H15: 37.3
C16: 向野 | D16: 392 | E16: =D16-'H30.6'!D16 -> 1 | F16: 946 | G16: =F16-'H30.6'!F16 -> 4 | H16: 33.2
C17: 宮崎 | D17: 155 | E17: =D17-'H30.6'!D17 -> -2 | F17: 377 | G17: =F17-'H30.6'!F17 -> -1 | H17: 35.8
C18: 赤田 | D18: 91 | E18: =D18-'H30.6'!D18 -> -1 | F18: 220 | G18: =F18-'H30.6'!F18 -> -1 | H18: 37.3
C19: 葛輪 | D19: 73 | E19: =D19-'H30.6'!D19 -> -1 | F19: 176 | G19: =F19-'H30.6'!F19 -> -1 | H19: 47.2
C20: 永方 | D20: 102 | E20: =D20-'H30.6'!D20 -> 0 | F20: 237 | G20: =F20-'H30.6'!F20 -> 0 | H20: 40.5
C21: 塩屋 | D21: 94 | E21: =D21-'H30.6'!D21 -> 1 | F21: 209 | G21: =F21-'H30.6'!F21 -> 1 | H21: 45
C22: 向野北 | D22: 244 | E22: =D22-'H30.6'!D22 -> -8 | F22: 402 | G22: =F22-'H30.6'!F22 -> -9 | H22: 0
C23: 古城 | D23: 271 | E23: =D23-'H30.6'!D23 -> 1 | F23: 676 | G23: =F23-'H30.6'!F23 -> 2 | H23: 28.6
C24: 校区合計 | D24: =SUM(D11:D23) -> 2194 | E24: =D24-'H30.6'!D24 -> -8 | F24: =SUM(F11:F23) -> 5077 | G24: =F24-'H30.6'!F24 -> -11 | H24: 32.6
B25: 清里 | C25: 建浜 | D25: 302 | E25: =D25-'H30.6'!D25 -> 0 | F25: 774 | G25: =F25-'H30.6'!F25 -> 5 | H25: 33.3
C26: 駅通 | D26: 144 | E26: =D26-'H30.6'!D26 -> 0 | F26: 329 | G26: =F26-'H30.6'!F26 -> 1 | H26: 31.6
C27: 梅田 | D27: 260 | E27: =D27-'H30.6'!D27 -> 2 | F27: 616 | G27: =F27-'H30.6'!F27 -> 1 | H27: 39.1
C28: 校区合計 | D28: =SUM(D25:D27) -> 706 | E28: =D28-'H30.6'!D28 -> 2 | F28: =SUM(F25:F27) -> 1719 | G28: =F28-'H30.6'!F28 -> 7 | H28: 35.1
B29: 長洲 | C29: 出町 | D29: 218 | E29: =D29-'H30.6'!D29 -> 0 | F29: 491 | G29: =F29-'H30.6'!F29 -> 0 | H29: 34.8
C30: 新町 | D30: 154 | E30: =D30-'H30.6'!D30 -> -2 | F30: 344 | G30: =F30-'H30.6'!F30 -> -5 | H30: 37.2
C31: 西新町 | D31: 37 | E31: =D31-'H30.6'!D31 -> 0 | F31: 64 | G31: =F31-'H30.6'!F31 -> 0 | H31: 65.6
C32: 宮ノ町 | D32: 138 | E32: =D32-'H30.6'!D32 -> 0 | F32: 308 | G32: =F32-'H30.6'!F32 -> 1 | H32: 33.1
C33: 松原 | D33: 105 | E33: =D33-'H30.6'!D33 -> 0 | F33: 218 | G33: =F33-'H30.6'!F33 -> -1 | H33: 43.1
C34: 新山 | D34: 297 | E34: =D34-'H30.6'!D34 -> 0 | F34: 650 | G34: =F34-'H30.6'!F34 -> 1 | H34: 40.9
C35: 宝町 | D35: 143 | E35: =D35-'H30.6'!D35 -> 0 | F35: 269 | G35: =F35-'H30.6'!F35 -> -2 | H35: 44.6
C36: 磯町 | D36: 117 | E36: =D36-'H30.6'!D36 -> 1 | F36: 221 | G36: =F36-'H30.6'!F36 -> -1 | H36: 45.7
C37: 上町 | D37: 69 | E37: =D37-'H30.6'!D37 -> 0 | F37: 154 | G37: =F37-'H30.6'!F37 -> 2 | H37: 42.2
C38: 中町 | D38: 56 | E38: =D38-'H30.6'!D38 -> 0 | F38: 125 | G38: =F38-'H30.6'!F38 -> 1 | H38: 44.8
C39: 下本 | D39: 42 | E39: =D39-'H30.6'!D39 -> 0 | F39: 89 | G39: =F39-'H30.6'!F39 -> 0 | H39: 55.1
C40: 今町 | D40: 47 | E40: =D40-'H30.6'!D40 -> 0 | F40: 116 | G40: =F40-'H30.6'!F40 -> 0 | H40: 45.7
C41: 下東 | D41: 253 | E41: =D41-'H30.6'!D41 -> -2 | F41: 599 | G41: =F41-'H30.6'!F41 -> -7 | H41: 27.9
C42: 西荒神 | D42: 60 | E42: =D42-'H30.6'!D42 -> -1 | F42: 137 | G42: =F42-'H30.6'!F42 -> 0 | H42: 45.3
C43: 東荒神 | D43: 362 | E43: =D43-'H30.6'!D43 -> 11 | F43: 814 | G43: =F43-'H30.6'!F43 -> 10 | H43: 29.4
C44: 大明神 | D44: 280 | E44: =D44-'H30.6'!D44 -> 0 | F44: 621 | G44: =F44-'H30.6'!F44 -> -5 | H44: 32.9
C45: 校区合計 | D45: =SUM(D29:D44) -> 2378 | E45: =D45-'H30.6'!D45 -> 7 | F45: =SUM(F29:F44) -> 5220 | G45: =F45-'H30.6'!F45 -> -6 | H45: 36.8
B47: 全体 | C47: 7111 | E47: =F10+F24+F28+F45 -> 16045 | G47: 33.9
D48: （世帯数） | F48: （人口） | H48: （高齢化率）

Sheet H30.6
B1: 行政区別の世帯数と人口
G2: (平成30年6月末日現在)
B4: 校区 | C4: 区名 | D4: 世帯数 | E4: 前月比（世帯） | F4: 人口 | G4: 前月比（人） | H4: 高齢化率（％）
B5: 腹赤 | C5: 平原 | D5: 310 | E5: =D5-'H30.5'!D5 -> 0 | F5: 668 | G5: =F5-'H30.5'!F5 -> 7 | H5: 33.4
C6: 清源寺 | D6: 686 | E6: =D6-'H30.5'!D6 -> -5 | F6: 1460 | G6: =F6-'H30.5'!F6 -> -11 | H6: 30
C7: 上沖洲 | D7: 391 | E7: =D7-'H30.5'!D7 -> 4 | F7: 784 | G7: =F7-'H30.5'!F7 -> 4 | H7: 33.4
C8: 腹赤 | D8: 350 | E8: =D8-'H30.5'!D8 -> 5 | F8: 909 | G8: =F8-'H30.5'!F8 -> 10 | H8: 27.8
C9: 腹赤新町 | D9: 88 | E9: =D9-'H30.5'!D9 -> -2 | F9: 206 | G9: =F9-'H30.5'!F9 -> -1 | H9: 43.7
C10: 校区合計 | D10: =SUM(D5:D9) -> 1825 | E10: =D10-'H30.5'!D10 -> 2 | F10: =SUM(F5:F9) -> 4027 | G10: =F10-'H30.5'!F10 -> 9 | H10: 31.4
B11: 六栄 | C11: 折地 | D11: 195 | E11: =D11-'H30.5'!D11 -> -1 | F11: 472 | G11: =F11-'H30.5'!F11 -> -1 | H11: 39
C12: 赤崎 | D12: 125 | E12: =D12-'H30.5'!D12 -> 0 | F12: 329 | G12: =F12-'H30.5'!F12 -> 0 | H12: 36.8
C13: 高田 | D13: 56 | E13: =D13-'H30.5'!D13 -> 0 | F13: 163 | G13: =F13-'H30.5'!F13 -> -1 | H13: 25.8
C14: 鷲巣 | D14: 222 | E14: =D14-'H30.5'!D14 -> 2 | F14: 519 | G14: =F14-'H30.5'!F14 -> 0 | H14: 32.8
C15: 立野 | D15: 173 | E15: =D15-'H30.5'!D15 -> 1 | F15: 357 | G15: =F15-'H30.5'!F15 -> 1 | H15: 37
C16: 向野 | D16: 391 | E16: =D16-'H30.5'!D16 -> 1 | F16: 942 | G16: =F16-'H30.5'!F16 -> -1 | H16: 33.5
C17: 宮崎 | D17: 157 | E17: =D17-'H30.5'!D17 -> -1 | F17: 378 | G17: =F17-'H30.5'!F17 -> 0 | H17: 35.4
C18: 赤田 | D18: 92 | E18: =D18-'H30.5'!D18 -> -4 | F18: 221 | G18: =F18-'H30.5'!F18 -> -5 | H18: 37.1
C19: 葛輪 | D19: 74 | E19: =D19-'H30.5'!D19 -> 0 | F19: 177 | G19: =F19-'H30.5'!F19 -> 0 | H19: 47.5
C20: 永方 | D20: 102 | E20: =D20-'H30.5'!D20 -> 0 | F20: 237 | G20: =F20-'H30.5'!F20 -> 0 | H20: 40.5
C21: 塩屋 | D21: 93 | E21: =D21-'H30.5'!D21 -> 0 | F21: 208 | G21: =F21-'H30.5'!F21 -> -1 | H21: 45.2
C22: 向野北 | D22: 252 | E22: =D22-'H30.5'!D22 -> -1 | F22: 411 | G22: =F22-'H30.5'!F22 -> -2 | H22: 0
C23: 古城 | D23: 270 | E23: =D23-'H30.5'!D23 -> 0 | F23: 674 | G23: =F23-'H30.5'!F23 -> -3 | H23: 28.3
C24: 校区合計 | D24: =SUM(D11:D23) -> 2202 | E24: =D24-'H30.5'!D24 -> -3 | F24: =SUM(F11:F23) -> 5088 | G24: =F24-'H30.5'!F24 -> -13 | H24: 32.4
B25: 清里 | C25: 建浜 | D25: 302 | E25: =D25-'H30.5'!D25 -> 6 | F25: 769 | G25: =F25-'H30.5'!F25 -> 9 | H25: 33.3
C26: 駅通 | D26: 144 | E26: =D26-'H30.5'!D26 -> 2 | F26: 328 | G26: =F26-'H30.5'!F26 -> 2 | H26: 31.4
C27: 梅田 | D27: 258 | E27: =D27-'H30.5'!D27 -> -1 | F27: 615 | G27: =F27-'H30.5'!F27 -> -3 | H27: 39
C28: 校区合計 | D28: =SUM(D25:D27) -> 704 | E28: =D28-'H30.5'!D28 -> 7 | F28: =SUM(F25:F27) -> 1712 | G28: =F28-'H30.5'!F28 -> 8 | H28: 35
B29: 長洲 | C29: 出町 | D29: 218 | E29: =D29-'H30.5'!D29 -> 1 | F29: 491 | G29: =F29-'H30.5'!F29 -> 0 | H29: 34.8
C30: 新町 | D30: 156 | E30: =D30-'H30.5'!D30 -> -1 | F30: 349 | G30: =F30-'H30.5'!F30 -> -1 | H30: 36.7
C31: 西新町 | D31: 37 | E31: =D31-'H30.5'!D31 -> 0 | F31: 64 | G31: =F31-'H30.5'!F31 -> 0 | H31: 65.6
C32: 宮ノ町 | D32: 138 | E32: =D32-'H30.5'!D32 -> -3 | F32: 307 | G32: =F32-'H30.5'!F32 -> -3 | H32: 32.9
C33: 松原 | D33: 105 | E33: =D33-'H30.5'!D33 -> 1 | F33: 219 | G33: =F33-'H30.5'!F33 -> 1 | H33: 42.9
C34: 新山 | D34: 297 | E34: =D34-'H30.5'!D34 -> 1 | F34: 649 | G34: =F34-'H30.5'!F34 -> 1 | H34: 41
C35: 宝町 | D35: 143 | E35: =D35-'H30.5'!D35 -> 0 | F35: 271 | G35: =F35-'H30.5'!F35 -> 1 | H35: 45
C36: 磯町 | D36: 116 | E36: =D36-'H30.5'!D36 -> 0 | F36: 222 | G36: =F36-'H30.5'!F36 -> 0 | H36: 45.9
C37: 上町 | D37: 69 | E37: =D37-'H30.5'!D37 -> 0 | F37: 152 | G37: =F37-'H30.5'!F37 -> 0 | H37: 43.4
C38: 中町 | D38: 56 | E38: =D38-'H30.5'!D38 -> 0 | F38: 124 | G38: =F38-'H30.5'!F38 -> 0 | H38: 45.2
C39: 下本 | D39: 42 | E39: =D39-'H30.5'!D39 -> 0 | F39: 89 | G39: =F39-'H30.5'!F39 -> 0 | H39: 55.1
C40: 今町 | D40: 47 | E40: =D40-'H30.5'!D40 -> 0 | F40: 116 | G40: =F40-'H30.5'!F40 -> 0 | H40: 45.7
C41: 下東 | D41: 255 | E41: =D41-'H30.5'!D41 -> -2 | F41: 606 | G41: =F41-'H30.5'!F41 -> -9 | H41: 27.4
C42: 西荒神 | D42: 61 | E42: =D42-'H30.5'!D42 -> 0 | F42: 137 | G42: =F42-'H30.5'!F42 -> -1 | H42: 46
C43: 東荒神 | D43: 351 | E43: =D43-'H30.5'!D43 -> -1 | F43: 804 | G43: =F43-'H30.5'!F43 -> -4 | H43: 30
C44: 大明神 | D44: 280 | E44: =D44-'H30.5'!D44 -> 3 | F44: 626 | G44: =F44-'H30.5'!F44 -> 0 | H44: 32.6
C45: 校区合計 | D45: =SUM(D29:D44) -> 2371 | E45: =D45-'H30.5'!D45 -> -1 | F45: =SUM(F29:F44) -> 5226 | G45: =F45-'H30.5'!F45 -> -15 | H45: 36.8
B47: 全体 | C47: 7102 | E47: =F10+F24+F28+F45 -> 16053 | G47: 33.9
D48: （世帯数） | F48: （人口） | H48: （高齢化率）

Sheet H30.5
B1: 行政区別の世帯数と人口
G2: (平成30年5月末日現在)
B4: 校区 | C4: 区名 | D4: 世帯数 | E4: 前月比（世帯） | F4: 人口 | G4: 前月比（人） | H4: 高齢化率（％）
B5: 腹赤 | C5: 平原 | D5: 310 | E5: =D5-'H30.4'!D5 -> -2 | F5: 661 | G5: =F5-'H30.4'!F5 -> -5 | H5: 33.6
C6: 清源寺 | D6: 691 | E6: =D6-'H30.4'!D6 -> -2 | F6: 1471 | G6: =F6-'H30.4'!F6 -> -1 | H6: 29.6
C7: 上沖洲 | D7: 387 | E7: =D7-'H30.4'!D7 -> -1 | F7: 780 | G7: =F7-'H30.4'!F7 -> -5 | H7: 33.2
C8: 腹赤 | D8: 345 | E8: =D8-'H30.4'!D8 -> 2 | F8: 899 | G8: =F8-'H30.4'!F8 -> 7 | H8: 27.8
C9: 腹赤新町 | D9: 90 | E9: =D9-'H30.4'!D9 -> 1 | F9: 207 | G9: =F9-'H30.4'!F9 -> -2 | H9: 43.5
C10: 校区合計 | D10: =SUM(D5:D9) -> 1823 | E10: =D10-'H30.4'!D10 -> -2 | F10: =SUM(F5:F9) -> 4018 | G10: =F10-'H30.4'!F10 -> -6 | H10: 31.3
B11: 六栄 | C11: 折地 | D11: 196 | E11: =D11-'H30.4'!D11 -> 0 | F11: 473 | G11: =F11-'H30.4'!F11 -> -2 | H11: 38.9
C12: 赤崎 | D12: 125 | E12: =D12-'H30.4'!D12 -> 0 | F12: 329 | G12: =F12-'H30.4'!F12 -> 0 | H12: 36.8
C13: 高田 | D13: 56 | E13: =D13-'H30.4'!D13 -> 0 | F13: 164 | G13: =F13-'H30.4'!F13 -> 0 | H13: 25.6
C14: 鷲巣 | D14: 220 | E14: =D14-'H30.4'!D14 -> 0 | F14: 519 | G14: =F14-'H30.4'!F14 -> -2 | H14: 32.4
C15: 立野 | D15: 172 | E15: =D15-'H30.4'!D15 -> 1 | F15: 356 | G15: =F15-'H30.4'!F15 -> 0 | H15: 37.1
C16: 向野 | D16: 390 | E16: =D16-'H30.4'!D16 -> -1 | F16: 943 | G16: =F16-'H30.4'!F16 -> 0 | H16: 33.5
C17: 宮崎 | D17: 158 | E17: =D17-'H30.4'!D17 -> 1 | F17: 378 | G17: =F17-'H30.4'!F17 -> -2 | H17: 35.4
C18: 赤田 | D18: 96 | E18: =D18-'H30.4'!D18 -> -3 | F18: 226 | G18: =F18-'H30.4'!F18 -> -4 | H18: 36.3
C19: 葛輪 | D19: 74 | E19: =D19-'H30.4'!D19 -> 0 | F19: 177 | G19: =F19-'H30.4'!F19 -> -1 | H19: 47.5
C20: 永方 | D20: 102 | E20: =D20-'H30.4'!D20 -> -2 | F20: 237 | G20: =F20-'H30.4'!F20 -> -2 | H20: 40.5
C21: 塩屋 | D21: 93 | E21: =D21-'H30.4'!D21 -> 0 | F21: 209 | G21: =F21-'H30.4'!F21 -> 0 | H21: 45.5
C22: 向野北 | D22: 253 | E22: =D22-'H30.4'!D22 -> 45 | F22: 413 | G22: =F22-'H30.4'!F22 -> 49 | H22: 0
C23: 古城 | D23: 270 | E23: =D23-'H30.4'!D23 -> -1 | F23: 677 | G23: =F23-'H30.4'!F23 -> 0 | H23: 28.5
C24: 校区合計 | D24: =SUM(D11:D23) -> 2205 | E24: =D24-'H30.4'!D24 -> 40 | F24: =SUM(F11:F23) -> 5101 | G24: =F24-'H30.4'!F24 -> 36 | H24: 32.3
B25: 清里 | C25: 建浜 | D25: 296 | E25: =D25-'H30.4'!D25 -> 1 | F25: 760 | G25: =F25-'H30.4'!F25 -> 0 | H25: 33.7
C26: 駅通 | D26: 142 | E26: =D26-'H30.4'!D26 -> -2 | F26: 326 | G26: =F26-'H30.4'!F26 -> -2 | H26: 31.9
C27: 梅田 | D27: 259 | E27: =D27-'H30.4'!D27 -> -2 | F27: 618 | G27: =F27-'H30.4'!F27 -> 1 | H27: 39
C28: 校区合計 | D28: =SUM(D25:D27) -> 697 | E28: =D28-'H30.4'!D28 -> -3 | F28: =SUM(F25:F27) -> 1704 | G28: =F28-'H30.4'!F28 -> -1 | H28: 35.3
B29: 長洲 | C29: 出町 | D29: 217 | E29: =D29-'H30.4'!D29 -> -1 | F29: 491 | G29: =F29-'H30.4'!F29 -> 0 | H29: 35
C30: 新町 | D30: 157 | E30: =D30-'H30.4'!D30 -> 3 | F30: 350 | G30: =F30-'H30.4'!F30 -> 4 | H30: 36.6
C31: 西新町 | D31: 37 | E31: =D31-'H30.4'!D31 -> -1 | F31: 64 | G31: =F31-'H30.4'!F31 -> -2 | H31: 65.6
C32: 宮ノ町 | D32: 141 | E32: =D32-'H30.4'!D32 -> 3 | F32: 310 | G32: =F32-'H30.4'!F32 -> -2 | H32: 32.6
C33: 松原 | D33: 104 | E33: =D33-'H30.4'!D33 -> 0 | F33: 218 | G33: =F33-'H30.4'!F33 -> -1 | H33: 43.1
C34: 新山 | D34: 296 | E34: =D34-'H30.4'!D34 -> 0 | F34: 648 | G34: =F34-'H30.4'!F34 -> 0 | H34: 40.7
C35: 宝町 | D35: 143 | E35: =D35-'H30.4'!D35 -> 0 | F35: 270 | G35: =F35-'H30.4'!F35 -> 0 | H35: 44.8
C36: 磯町 | D36: 116 | E36: =D36-'H30.4'!D36 -> -1 | F36: 222 | G36: =F36-'H30.4'!F36 -> -3 | H36: 45.9
C37: 上町 | D37: 69 | E37: =D37-'H30.4'!D37 -> 0 | F37: 152 | G37: =F37-'H30.4'!F37 -> 0 | H37: 43.4
C38: 中町 | D38: 56 | E38: =D38-'H30.4'!D38 -> 0 | F38: 124 | G38: =F38-'H30.4'!F38 -> -1 | H38: 45.2
C39: 下本 | D39: 42 | E39: =D39-'H30.4'!D39 -> 0 | F39: 89 | G39: =F39-'H30.4'!F39 -> 0 | H39: 55.1
C40: 今町 | D40: 47 | E40: =D40-'H30.4'!D40 -> 0 | F40: 116 | G40: =F40-'H30.4'!F40 -> 0 | H40: 45.7
C41: 下東 | D41: 257 | E41: =D41-'H30.4'!D41 -> 3 | F41: 615 | G41: =F41-'H30.4'!F41 -> 0 | H41: 27
C42: 西荒神 | D42: 61 | E42: =D42-'H30.4'!D42 -> 0 | F42: 138 | G42: =F42-'H30.4'!F42 -> 0 | H42: 45.7
C43: 東荒神 | D43: 352 | E43: =D43-'H30.4'!D43 -> -2 | F43: 808 | G43: =F43-'H30.4'!F43 -> 0 | H43: 29.8
C44: 大明神 | D44: 277 | E44: =D44-'H30.4'!D44 -> 3 | F44: 626 | G44: =F44-'H30.4'!F44 -> 2 | H44: 31.9
C45: 校区合計 | D45: =SUM(D29:D44) -> 2372 | E45: =D45-'H30.4'!D45 -> 7 | F45: =SUM(F29:F44) -> 5241 | G45: =F45-'H30.4'!F45 -> -3 | H45: 36.6
B47: 全体 | C47: 7096 | E47: =F10+F24+F28+F45 -> 16064 | G47: 33.8
D48: （世帯数） | F48: （人口） | H48: （高齢化率）

Sheet H30.4
B1: 行政区別の世帯数と人口
G2: (平成30年4月末日現在)
B4: 校区 | C4: 区名 | D4: 世帯数 | E4: 前月比（世帯） | F4: 人口 | G4: 前月比（人） | H4: 高齢化率（％）
B5: 腹赤 | C5: 平原 | D5: 312 | E5: =D5-'H30.3'!D5 -> -2 | F5: 666 | G5: =F5-'H30.3'!F5 -> -6 | H5: 33.3
C6: 清源寺 | D6: 693 | E6: =D6-'H30.3'!D6 -> 24 | F6: 1472 | G6: =F6-'H30.3'!F6 -> 21 | H6: 29.3
C7: 上沖洲 | D7: 388 | E7: =D7-'H30.3'!D7 -> 0 | F7: 785 | G7: =F7-'H30.3'!F7 -> -1 | H7: 33.1
C8: 腹赤 | D8: 343 | E8: =D8-'H30.3'!D8 -> -1 | F8: 892 | G8: =F8-'H30.3'!F8 -> 0 | H8: 27.9
C9: 腹赤新町 | D9: 89 | E9: =D9-'H30.3'!D9 -> -1 | F9: 209 | G9: =F9-'H30.3'!F9 -> -1 | H9: 43.1
C10: 校区合計 | D10: =SUM(D5:D9) -> 1825 | E10: =D10-'H30.3'!D10 -> 20 | F10: =SUM(F5:F9) -> 4024 | G10: =F10-'H30.3'!F10 -> 13 | H10: 31.1
B11: 六栄 | C11: 折地 | D11: 196 | E11: =D11-'H30.3'!D11 -> 2 | F11: 475 | G11: =F11-'H30.3'!F11 -> 7 | H11: 39.2
C12: 赤崎 | D12: 125 | E12: =D12-'H30.3'!D12 -> -1 | F12: 329 | G12: =F12-'H30.3'!F12 -> -6 | H12: 36.8
C13: 高田 | D13: 56 | E13: =D13-'H30.3'!D13 -> 0 | F13: 164 | G13: =F13-'H30.3'!F13 -> 1 | H13: 25.6
C14: 鷲巣 | D14: 220 | E14: =D14-'H30.3'!D14 -> 2 | F14: 521 | G14: =F14-'H30.3'!F14 -> 1 | H14: 32.4
C15: 立野 | D15: 171 | E15: =D15-'H30.3'!D15 -> 1 | F15: 356 | G15: =F15-'H30.3'!F15 -> 0 | H15: 36.5
C16: 向野 | D16: 391 | E16: =D16-'H30.3'!D16 -> 4 | F16: 943 | G16: =F16-'H30.3'!F16 -> 6 | H16: 33.6
C17: 宮崎 | D17: 157 | E17: =D17-'H30.3'!D17 -> 0 | F17: 380 | G17: =F17-'H30.3'!F17 -> -1 | H17: 35.5
C18: 赤田 | D18: 99 | E18: =D18-'H30.3'!D18 -> 1 | F18: 230 | G18: =F18-'H30.3'!F18 -> 2 | H18: 36.5
C19: 葛輪 | D19: 74 | E19: =D19-'H30.3'!D19 -> 1 | F19: 178 | G19: =F19-'H30.3'!F19 -> 4 | H19: 47.2
C20: 永方 | D20: 104 | E20: =D20-'H30.3'!D20 -> 0 | F20: 239 | G20: =F20-'H30.3'!F20 -> -1 | H20: 41
C21: 塩屋 | D21: 93 | E21: =D21-'H30.3'!D21 -> 2 | F21: 209 | G21: =F21-'H30.3'!F21 -> 4 | H21: 45
C22: 向野北 | D22: 208 | E22: =D22-'H30.3'!D22 -> -37 | F22: 364 | G22: =F22-'H30.3'!F22 -> -41 | H22: 0
C23: 古城 | D23: 271 | E23: =D23-'H30.3'!D23 -> 5 | F23: 677 | G23: =F23-'H30.3'!F23 -> 1 | H23: 28.5
C24: 校区合計 | D24: =SUM(D11:D23) -> 2165 | E24: =D24-'H30.3'!D24 -> -20 | F24: =SUM(F11:F23) -> 5065 | G24: =F24-'H30.3'!F24 -> -23 | H24: 32.6
B25: 清里 | C25: 建浜 | D25: 295 | E25: =D25-'H30.3'!D25 -> -4 | F25: 760 | G25: =F25-'H30.3'!F25 -> -2 | H25: 33.7
C26: 駅通 | D26: 144 | E26: =D26-'H30.3'!D26 -> 5 | F26: 328 | G26: =F26-'H30.3'!F26 -> 8 | H26: 31.7
C27: 梅田 | D27: 261 | E27: =D27-'H30.3'!D27 -> -1 | F27: 617 | G27: =F27-'H30.3'!F27 -> -5 | H27: 39.4
C28: 校区合計 | D28: =SUM(D25:D27) -> 700 | E28: =D28-'H30.3'!D28 -> 0 | F28: =SUM(F25:F27) -> 1705 | G28: =F28-'H30.3'!F28 -> 1 | H28: 35.4
B29: 長洲 | C29: 出町 | D29: 218 | E29: =D29-'H30.3'!D29 -> -1 | F29: 491 | G29: =F29-'H30.3'!F29 -> -2 | H29: 35
C30: 新町 | D30: 154 | E30: =D30-'H30.3'!D30 -> 0 | F30: 346 | G30: =F30-'H30.3'!F30 -> -1 | H30: 37
C31: 西新町 | D31: 38 | E31: =D31-'H30.3'!D31 -> 0 | F31: 66 | G31: =F31-'H30.3'!F31 -> 0 | H31: 63.6
C32: 宮ノ町 | D32: 138 | E32: =D32-'H30.3'!D32 -> 1 | F32: 312 | G32: =F32-'H30.3'!F32 -> 3 | H32: 32.4
C33: 松原 | D33: 104 | E33: =D33-'H30.3'!D33 -> 0 | F33: 219 | G33: =F33-'H30.3'!F33 -> -2 | H33: 42.9
C34: 新山 | D34: 296 | E34: =D34-'H30.3'!D34 -> 3 | F34: 648 | G34: =F34-'H30.3'!F34 -> 2 | H34: 40.7
C35: 宝町 | D35: 143 | E35: =D35-'H30.3'!D35 -> 0 | F35: 270 | G35: =F35-'H30.3'!F35 -> 3 | H35: 44.8
C36: 磯町 | D36: 117 | E36: =D36-'H30.3'!D36 -> 0 | F36: 225 | G36: =F36-'H30.3'!F36 -> 0 | H36: 45.3
C37: 上町 | D37: 69 | E37: =D37-'H30.3'!D37 -> 0 | F37: 152 | G37: =F37-'H30.3'!F37 -> 1 | H37: 43.4
C38: 中町 | D38: 56 | E38: =D38-'H30.3'!D38 -> 0 | F38: 125 | G38: =F38-'H30.3'!F38 -> 0 | H38: 44.8
C39: 下本 | D39: 42 | E39: =D39-'H30.3'!D39 -> 0 | F39: 89 | G39: =F39-'H30.3'!F39 -> 0 | H39: 55.1
C40: 今町 | D40: 47 | E40: =D40-'H30.3'!D40 -> 0 | F40: 116 | G40: =F40-'H30.3'!F40 -> 1 | H40: 45.7
C41: 下東 | D41: 254 | E41: =D41-'H30.3'!D41 -> 3 | F41: 615 | G41: =F41-'H30.3'!F41 -> 10 | H41: 27.2
C42: 西荒神 | D42: 61 | E42: =D42-'H30.3'!D42 -> 0 | F42: 138 | G42: =F42-'H30.3'!F42 -> 0 | H42: 45.7
C43: 東荒神 | D43: 354 | E43: =D43-'H30.3'!D43 -> -4 | F43: 808 | G43: =F43-'H30.3'!F43 -> -12 | H43: 29.8
C44: 大明神 | D44: 274 | E44: =D44-'H30.3'!D44 -> -1 | F44: 624 | G44: =F44-'H30.3'!F44 -> -5 | H44: 31.9
C45: 校区合計 | D45: =SUM(D29:D44) -> 2365 | E45: =D45-'H30.3'!D45 -> 1 | F45: =SUM(F29:F44) -> 5244 | G45: =F45-'H30.3'!F45 -> -2 | H45: 36.6
B47: 全体 | C47: =D10+D24+D28+D45 -> 7055 | E47: =F10+F24+F28+F45 -> 16038 | G47: 33.8
D48: （世帯数） | F48: （人口） | H48: （高齢化率）

Sheet H30.3
B1: 行政区別の世帯数と人□
B4: 校区 | C4: 区名 | D4: 世帯数 | E4: 前月比（世帯） | F4: 人口 | G4: 前月比（人）
B5: 腹赤 | C5: 平原 | D5: 314 | E5: - | F5: 672 | G5: -
C6: 清源寺 | D6: 669 | E6: - | F6: 1451 | G6: -
C7: 上沖洲 | D7: 388 | E7: - | F7: 786 | G7: -
C8: 腹赤 | D8: 344 | E8: - | F8: 892 | G8: -
C9: 腹赤新町 | D9: 90 | E9: - | F9: 210 | G9: -
C10: 校区合計 | D10: =SUM(D5:D9) -> 1805 | E10: - | F10: =SUM(F5:F9) -> 4011 | G10: -
B11: 六栄 | C11: 折地 | D11: 194 | E11: - | F11: 468 | G11: -
C12: 赤崎 | D12: 126 | E12: - | F12: 335 | G12: -
C13: 高田 | D13: 56 | E13: - | F13: 163 | G13: -
C14: 鷲巣 | D14: 218 | E14: - | F14: 520 | G14: -
C15: 立野 | D15: 170 | E15: - | F15: 356 | G15: -
C16: 向野 | D16: 387 | E16: - | F16: 937 | G16: -
C17: 宮崎 | D17: 157 | E17: - | F17: 381 | G17: -
C18: 赤田 | D18: 98 | E18: - | F18: 228 | G18: -
C19: 葛輪 | D19: 73 | E19: - | F19: 174 | G19: -
C20: 永方 | D20: 104 | E20: - | F20: 240 | G20: -
C21: 塩屋 | D21: 91 | E21: - | F21: 205 | G21: -
C22: 向野北 | D22: 245 | E22: - | F22: 405 | G22: -
C23: 古城 | D23: 266 | E23: - | F23: 676 | G23: -
C24: 校区合計 | D24: =SUM(D11:D23) -> 2185 | E24: - | F24: =SUM(F11:F23) -> 5088 | G24: -
B25: 清里 | C25: 建浜 | D25: 299 | E25: - | F25: 762 | G25: -
C26: 駅通 | D26: 139 | E26: - | F26: 320 | G26: -
C27: 梅田 | D27: 262 | E27: - | F27: 622 | G27: -
C28: 校区合計 | D28: =SUM(D25:D27) -> 700 | E28: - | F28: =SUM(F25:F27) -> 1704 | G28: -
B29: 長洲 | C29: 出町 | D29: 219 | E29: - | F29: 493 | G29: -
C30: 新町 | D30: 154 | E30: - | F30: 347 | G30: -
C31: 西新町 | D31: 38 | E31: - | F31: 66 | G31: -
C32: 宮ノ町 | D32: 137 | E32: - | F32: 309 | G32: -
C33: 松原 | D33: 104 | E33: - | F33: 221 | G33: -
C34: 新山 | D34: 293 | E34: - | F34: 646 | G34: -
C35: 宝町 | D35: 143 | E35: - | F35: 267 | G35: -
C36: 磯町 | D36: 117 | E36: - | F36: 225 | G36: -
C37: 上町 | D37: 69 | E37: - | F37: 151 | G37: -
C38: 中町 | D38: 56 | E38: - | F38: 125 | G38: -
C39: 下本 | D39: 42 | E39: - | F39: 89 | G39: -
C40: 今町 | D40: 47 | E40: - | F40: 115 | G40: -
C41: 下東 | D41: 251 | E41: - | F41: 605 | G41: -
C42: 西荒神 | D42: 61 | E42: - | F42: 138 | G42: -
C43: 東荒神 | D43: 358 | E43: - | F43: 820 | G43: -
C44: 大明神 | D44: 275 | E44: - | F44: 629 | G44: -
C45: 校区合計 | D45: =SUM(D29:D44) -> 2364 | E45: - | F45: =SUM(F29:F44) -> 5246 | G45: -
G49: 計 | H49: =D10+D24+D28+D45 -> 7054 | I49: =F10+F24+F28+F45 -> 16049
G51: (平成30年3月31日現在)
